Cogmind - Beta 10.2 @@@ ROGUE MODE // 2021.10.01 @ 09:51:39 Player: Enzo Result: Destroyed by H-55 Commando with Gauss Rifle Performance ------------- Evolutions (0) 0 Regions Visited (3) 600 Robots Destroyed (24) 120 Value Destroyed (323) 323 Prototype IDs (25) 500 Alien Tech Used (0) 0 Bonus (260) 260 TOTAL SCORE: 1803 Bonus ------- Follower Combat Kills 14 Aligned with FarCom 300 Friendly Fire -54 Cogmind --------- Core Integrity 0/250 Matter 300/300 Energy 250/250 System Corruption 0% Temperature Cool (0) Movement Core (650) Ox12 Location -10/Exiles Parts ------- > --- POWER (1) -------- Ion Engine > --- PROPULSION (2) --- (None) > --- UTILITY (2) ------ High-capacity Storage Unit > --- WEAPON (2) ------- (None) > --- INVENTORY (12) --- Improved Hover Unit Improved Hover Unit Improved Hover Unit Improved Hover Unit Medium Storage Unit Improved Terrain Scanner XL Autogun Array Datajack Mining Laser Peak State ------------ > --- POWER ------------ Ion Engine > --- PROPULSION ------- Light Treads Light Treads > --- UTILITY ---------- Cooling System High-capacity Storage Unit > --- WEAPON ----------- EM Pulse Gun Grenade Launcher > --- INVENTORY -------- Improved Hover Unit Improved Hover Unit Improved Hover Unit Improved Hover Unit Medium Storage Unit Improved Terrain Scanner XL Autogun Array Datajack Mining Laser [Rating: 12] Favorites ----------- Power Light Ion Engine Engine Light Ion Engine Propulsion Light Treads Treads Light Treads Leg Aluminum Leg Utility High-capacity Storage Unit Device Heat Sink Storage High-capacity Storage Unit Weapon Assault Rifle Energy Gun EM Pulse Gun Ballistic Gun Assault Rifle Launcher Grenade Launcher Special Melee Weapon Datajack Build | -11 -10 -10 -10 ------- Run | Scr Mat Min Exi Slots Evolved . | . . . . Power . | . . . . Propulsion . | . . . . Utility . | . . . . Weapon . | . . . . Parts Attached 26 | 7 17 . 2 Power 3 | 1 1 . 1 Engine 3 | 1 1 . 1 Core . | . . . . Reactor . | . . . . Propulsion 6 | 2 4 . . Treads 5 | 2 3 . . Leg 1 | . 1 . . Wheel . | . . . . Hover . | . . . . Flight . | . . . . Utility 4 | 1 2 . 1 Device 2 | . 1 . 1 Storage 2 | 1 1 . . Processor . | . . . . Hackware . | . . . . Protection . | . . . . Artifact . | . . . . Weapon 13 | 3 10 . . Energy Gun 4 | 1 3 . . Energy Cannon . | . . . . Ballistic Gun 5 | 2 3 . . Ballistic Cannon . | . . . . Launcher 3 | . 3 . . Special Weapon . | . . . . Impact Weapon . | . . . . Slashing Weapon . | . . . . Piercing Weapon . | . . . . Special Melee Weapon 1 | . 1 . . Unidentified Prototypes . | . . . . Parts Lost 7 | . 2 . 5 Power 1 | . 1 . . Propulsion 3 | . 1 . 2 Utility 1 | . . . 1 Weapon 2 | . . . 2 Highest Loss Streak 5 | . 2 . 5 Average Slot Usage (%) 95 | . 91 100 98 Engine 13 | . 13 14 14 Treads 26 | . 25 28 27 Device 10 | . 6 14 13 Storage 14 | . 14 14 14 Energy Gun 11 | . 9 14 14 Ballistic Gun 8 | . 17 . . Launcher 7 | . . 14 13 Naked Turns . | . . . . Heaviest Build 44 | 10 41 41 44 Greatest Support 40 | 40 40 40 40 Greatest Overweight (x) 12 | . 1 1 12 Average Overweight (x) . | . . 1 1 Largest Inventory Capacity 14 | 6 14 12 12 Average Capacity 11 | 5 11 12 12 Most Carried 12 | 2 12 12 12 Average Carried 8 | . 6 11 11 Final Capacity 12 | 6 12 12 12 Final Carried 12 | 2 12 12 12 Class Distribution -------------------- 65% | Scavenger-Mutant 34% | Mutant Dominant Class ---------------- Mutant | -10/Materials Scavenger-Mutant | -10/Mines Scavenger-Mutant | -10/Exiles Resources | -11 -10 -10 -10 ----------- Run | Scr Mat Min Exi Matter Collected 624 | 264 247 113 . Remotely . | . . . . Salvage Created 701 | 98 465 138 . Parts 49 | 3 38 8 . Haulers Intercepted 2 | . 2 . . Recyclers Shooed 1 | . 1 . . Parts Field Recycled . | . . . . Retrieved Matter . | . . . . Parts Self-Destructed . | . . . . Prevented . | . . . . Kills | -11 -10 -10 -10 ------- Run | Scr Mat Min Exi Combat Hostiles Destroyed 16 | . 12 4 . Guns 11 | . 9 2 . AOE 5 | . 3 2 . Classes Destroyed 6 | 2 4 . . Tunneler 1 | 1 . . . Hauler 2 | . 2 . . Recycler 3 | 1 1 1 . Watcher 2 | . 2 . . Swarmer 13 | . 9 4 . Grunt 3 | . 3 . . Best Kill Streak 4 | 1 4 2 . Combat Bots Only 4 | . 4 2 . Max Kills in Single Turn 3 | 1 3 1 . Gunslinging 1 | . 1 . . Exploded 3 | . 3 1 . Melee . | . . . . Uniques/NPCs Destroyed . | . . . . Combat | -11 -10 -10 -10 -------- Run | Scr Mat Min Exi Damage Taken 1149 | . 574 54 521 Core 258 | . 131 . 127 Absorbed by Shields . | . . . . Core Remaining (%) 100 | 100 . . . Volleys Fired 64 | 8 42 14 . Largest 2 | 2 2 1 . Hottest 60 | 60 60 40 . Shots Fired 109 | 16 79 14 . Gun 104 | 16 74 14 . Cannon . | . . . . Launcher 5 | . 5 . . Special . | . . . . Kinetic 48 | 8 40 . . Thermal 42 | 8 34 . . Explosive 5 | . 5 . . Electromagnetic 14 | . . 14 . Robot Hit Streak 15 | 10 15 3 . Robot Miss Streak 4 | 1 4 2 . Penetration Max . | . . . . Secondary Targets 1 | . 1 . . Max Gunslinging Chain 1 | . 1 . . Shots Hit Robots 75 | 14 52 9 . Core Hits 35 | 3 25 7 . Critical Hits 1 | . 1 . . Critical Kills 1 | . 1 . . Critical Parts Destroyed . | . . . . Melee Attacks . | . . . . Impact . | . . . . Slashing . | . . . . Piercing . | . . . . Sneak Attacks . | . . . . Combat Hostiles . | . . . . Follow-up Attacks . | . . . . Damage Inflicted 1307 | 157 847 303 . Guns 875 | 157 597 121 . Cannons . | . . . . Explosions 432 | . 250 182 . Melee . | . . . . Ramming . | . . . . Kinetic 405 | 77 328 . . Thermal 531 | 80 269 182 . Explosive 250 | . 250 . . Electromagnetic 121 | . . 121 . Impact . | . . . . Slashing . | . . . . Piercing . | . . . . Highest Corruption . | . . . . Average Corruption . | . . . . Corruption Purged . | . . . . Overload Shots . | . . . . Overflow Damage 23 | . . 23 . Projectiles . | . . . . Explosions 23 | . . 23 . Melee . | . . . . Knockbacks . | . . . . Impact . | . . . . Kinetic . | . . . . Secondary . | . . . . Self-Inflicted Damage 63 | . 55 8 . Shots 4 | . 3 1 . Rammed . | . . . . Targets Rammed . | . . . . Kicked . | . . . . Crushed . | . . . . Highest Temperature 24 | . 24 2 . Average Temperature 14 | . 15 2 . Received Heat Transfer 72 | . 24 . 48 Siege Activations . | . . . . Robots Corrupted . | . . . . Combat Hostiles . | . . . . Parts Fried . | . . . . Impact Corruptions . | . . . . Robots Melted . | . . . . Combat Hostiles . | . . . . Parts Melted 1 | . 1 . . Heat Transferred 1025 | 175 600 250 . Parts Sabotaged . | . . . . Parts Stolen . | . . . . Parts Stripped . | . . . . Power Chain Reactions 3 | . . 3 . Missiles Intercepted . | . . . . Alert | -11 -10 -10 -10 ------- Run | Scr Mat Min Exi Peak Influence 287 | 10 287 146 . Initial 6 | . 6 . . Average 70 | 3 96 41 . Maximum Alert Level 1 | . 1 . . Low Security (%) 94 | 100 90 100 . Level 1 5 | . 9 . . Level 2 . | . . . . Level 3 . | . . . . Level 4 . | . . . . Level 5 . | . . . . High Security . | . . . . Max Security . | . . . . Squads Dispatched 2 | . 2 . . Investigation . | . . . . Extermination . | . . . . Reinforcement 2 | . 2 . . Assault . | . . . . Garrison . | . . . . Intercept . | . . . . Construction Impeded . | . . . . Haulers Reinforced . | . . . . Stealth | -11 -10 -10 -10 --------- Run | Scr Mat Min Exi Distress Signals 2 | . 2 . . Communications Jammed . | . . . . Distress Signals . | . . . . Times Spotted 29 | . 20 5 4 Peak Tracking Total 7 | . 7 3 3 Tactical Retreats 2 | . 2 . . Traps | -11 -10 -10 -10 ------- Run | Scr Mat Min Exi Traps Triggered . | . . . . Indirectly . | . . . . Trap Hack Attempts . | . . . . Triggered . | . . . . Disarmed . | . . . . Reprogrammed . | . . . . Reused . | . . . . Traps Extracted . | . . . . Installed . | . . . . Triggered . | . . . . Exploded 1 | . . . 1 Machines | -11 -10 -10 -10 ---------- Run | Scr Mat Min Exi Machines Disabled 3 | . 2 1 . Max in Single Turn 2 | . 2 . . Machines Sabotaged . | . . . . Garrisons Compromised . | . . . . Overloaded Fab Kills . | . . . . Fab Network Shutdowns . | . . . . Hacking | -11 -10 -10 -10 --------- Run | Scr Mat Min Exi Machines Accessed 6 | . 5 . 1 Terminals 5 | . 5 . . Fabricators . | . . . . Repair Stations . | . . . . Recycling Units . | . . . . Scanalyzers . | . . . . Garrison Access . | . . . . Total Hacks 16 | . 15 . 1 Successful 10 | . 9 . 1 Failed 6 | . 6 . . Catastrophic . | . . . . Database Lockouts . | . . . . Manual 6 | . 5 . 1 Terminals 15 | . 15 . . Fabricators . | . . . . Repair Stations . | . . . . Recycling Units . | . . . . Scanalyzers . | . . . . Garrison Access . | . . . . Terminal Hacks 8 | . 7 . 1 Prototype ID Bank 1 | . 1 . . Terminal Index 1 | . 1 . . Alert Level 1 | . 1 . . Locate Traps 4 | . 4 . . EX-Prototype ID Bank 1 | . . . 1 Fabricator Hacks . | . . . . Repair Station Hacks . | . . . . Recycling Unit Hacks . | . . . . Scanalyzer . | . . . . Garrison Access Hacks . | . . . . Unauthorized Hacks 2 | . 2 . . Terminals 2 | . 2 . . Botnet 2 | . 2 . . Fabricators . | . . . . Repair Stations . | . . . . Recycling Units . | . . . . Scanalyzers . | . . . . Garrison Access . | . . . . Data Cores Recovered . | . . . . Used . | . . . . Hacking Detections 5 | . 5 . . Full Trace Events . | . . . . Feedback Events . | . . . . Feedback Blocked . | . . . . Robot Schematics Acquired . | . . . . Robots Built . | . . . . Matter . | . . . . Time . | . . . . Total Robot Build Rating . | . . . . Part Schematics Acquired . | . . . . Parts Built . | . . . . Matter . | . . . . Time . | . . . . Total Part Build Rating . | . . . . Parts Repaired . | . . . . Time . | . . . . Parts Recycled . | . . . . Recycled Matter . | . . . . Retrieved Matter . | . . . . Retrieved Components . | . . . . Parts Scanalyzed . | . . . . Part Schematics Acquired . | . . . . Parts Damaged . | . . . . Bothacking | -11 -10 -10 -10 ------------ Run | Scr Mat Min Exi Used RIF Installer . | . . . . Robots Hacked . | . . . . Non-combat . | . . . . Combat . | . . . . Robot Hacks Applied . | . . . . Relay Couplers Released . | . . . . Robots Rewired . | . . . . Allies Hacked . | . . . . Hacks Repelled . | . . . . Allies | -11 -10 -10 -10 -------- Run | Scr Mat Min Exi Total Allies 2 | . . 2 . Largest Group 2 | . . 2 1 Highest-Rated Group 41 | . . 41 10 Highest-Rated Ally 31 | . . 31 10 Total Orders . | . . . . Ally Attacks 6 | . . 6 . Total Damage 85 | . . 85 . Kills 2 | . . 2 . Allies Corrupted . | . . . . Allies Melted . | . . . . Intel | -11 -10 -10 -10 ------- Run | Scr Mat Min Exi Robot Analysis Total . | . . . . Derelict Logs Recovered 1 | . . 1 . Drone Launches . | . . . . Drone Recoveries . | . . . . Exploration | -11 -10 -10 -10 ------------- Run | Scr Mat Min Exi Turns Passed 2536 | 120 1217 776 423 Spaces Moved 1268 | 53 579 404 232 Core 5 | 4 . . 1 Treads 1263 | 49 579 404 231 Legs . | . . . . Wheels . | . . . . Hover . | . . . . Flight . | . . . . Fastest Speed 50 | 50 160 180 180 Average Speed 171 | 151 163 180 182 Slowest Speed 650 | 160 180 180 650 Overloaded Moves . | . . . . Propulsion Burnouts . | . . . . Robots Hopped . | . . . . Cave-ins Triggered . | . . . . Exploration Rate (%) 49 | 4 73 72 48 Regions Visited 3 Branch Regions 2 Pre-discovered Areas . | . . . . Known Exits Taken . | . . . . Unknown Exits Taken 3 | 1 1 1 . Scrap Searched 2 | . . 2 . Spaces Dug . | . . . . Terrain Destroyed 31 | . 15 16 . Melee . | . . . . Projectile . | . . . . AOE 31 | . 15 16 . Terrain Rammed . | . . . . Walls Destroyed . | . . . . Machines Disabled . | . . . . Actions | -11 -10 -10 -10 --------- Run | Scr Mat Min Exi Total 1521 | 74 767 441 239 Wait 128 | 3 105 20 . Move 1265 | 52 578 403 232 Hop . | . . . . Pick Up 20 | 3 14 2 1 Fast Attach 13 | 6 7 . . Attach 3 | 1 1 . 1 Detach 1 | . 1 . . Swap 10 | . 9 . 1 Drop 17 | 1 10 2 4 Fire 64 | 8 42 14 . Melee . | . . . . Ram . | . . . . Kick . | . . . . Crush . | . . . . Escape Stasis . | . . . . Rewire . | . . . . Trap . | . . . . Miscellaneous . | . . . . Route ------- -11/Scrapyard -10/Materials (discovered 3 exits: [*Mat x2] / [*Min]) -10/Mines (discovered 3 exits: [*Mat x2] / *Exi) -10/Exiles History --------- Turn | Location | Event 16 | -11/Scrapyard | Discovered new exit (range 15) 121 | -11/Scrapyard | Entered Materials 309 | -10/Materials | Build established: Mutant 659 | -10/Materials | Discovered new exit (range 10) 723 | -10/Materials | Discovered new exit (range 15) 1097 | -10/Materials | Discovered new exit (range 13) 1102 | -10/Materials | Build established: Scavenger-Mutant 1281 | -10/Materials | Core integrity fell below 50% 1338 | -10/Materials | Entered Mines 1617 | -10/Mines | Discovered new exit (range 5) 1988 | -10/Mines | Discovered new exit (range 10) 2077 | -10/Mines | Learned Materials emergency access door positions 2100 | -10/Mines | Deemed a non-threat by the Exiles lab entrance 2102 | -10/Mines | Discovered new exit (range 5) 2114 | -10/Mines | Entered Exiles 2114 | -10/Exiles | Accompanied by 1 ally 2159 | -10/Exiles | Met 8R-AWN 2185 | -10/Exiles | Met EX-HEX 2260 | -10/Exiles | Met EX-BIN 2282 | -10/Exiles | Aligned with FarCom system 2284 | -10/Exiles | Given EX-Vault access code 2332 | -10/Exiles | Opened EX-Vault 2405 | -10/Exiles | Exiles lab attacked by MAIN.C 2450 | -10/Exiles | Found XL Autogun Array 2530 | -10/Exiles | Core integrity fell below 20% 2537 | -10/Exiles | Destroyed by H-55 Commando with Gauss Rifle Last Messages --------------- 02443_ Dropped Lgt. Ion Engine. 02443_ Dropped Heat Sink. 02450_ Acquired XL Autogun Array. 02509_ Penetrated by Slug. 02509_ Machine disabled. 02509_ Penetrated by Slug. 02513_ Machine disabled. 02515_ Penetrated by Slug. 02515_ Grenade Launcher destroyed. 02516_ Penetrated by Slug. 02522_ Cooling System destroyed. 02523_ Penetrated by Slug. 02523_ Lgt. Treads destroyed. 02524_ 8R-AWN: "We've got company!" 02525_ Penetrated by Slug. 02528_ 8R-AWN: "I'll cover you all, get out of here!" 02528_ Penetrated by Slug. 02535_ Lgt. Treads destroyed. 02536_ Penetrated by Slug. 02536_ EM Pulse Gun destroyed. Map ----- +----------------------------------------------------+ | ?????????????????????????#""X" #?????????? | | ?????????????????????????#" #?????????? | | ?????????????????????????#" ## #?????????? | | ?????????????????????????#""""""## #?######### | | ?????????????????????????##"###### #?#"""""""# | | ????????????????????????? "?????# #?#"""""""# | | ????????????????????????"""??????# #?#"""""""# | | ????????????????????????"""?????## ###"" """"# | | ????????????????????????????????#" """"# | | ????????????????????????????????#" """# | | ????????????????????????????????# """# | | ????????????????????????????????# """# | | ????????????????????????????????# """# | | ????????????????????????????????#" """# | | ????????????????????????????????## """" | | ?????????????????????????????????# """# | | ?????????????????????????????????#" "X" """" | | ?????????????????????????????????# """ # | | ?????????????????????????????????# """""""""# | | ????????????????????????????????## ########### | | ???????????????????#???????????##" #?????????? | | ???????????????????# ?##??######"" #?????????? | | ???????????""#####X# #"###"""""" ##????????? | | ??????????z """"" ##???##### | | ?????????? " #####"""" | | ?????????? @ " "" | | ?????????? "" | | ?????????? g " | | ??????????? | | ??????????? h | | ????????????" h | | ????????????""" """""" | | ????????????? ######""" | | ????????????? ""##????#####""" | | ?????????????" """##?????????##""" | | ??????????????t """##???????????#"""" | | ?????????????? ""#????????????#"" | | ???????????????? ???????????????"""" | | ?????????????????? d ?????????????"" | | ????????????????????? ??????????????" | | ????????????????????????????????????? | | ????????????????????????????????????? | | ????????????????????????????????????? " | | ????????????????????????????????????? "" " | | ?????????????????????????????????????#?""" " " "" | | ????????????????????????????????????????###""" """ | | ??????????????????????????????????????????###""""# | | ????????????????????????????????????????????###??? | | ?????????????????????????????????????????????????? | | ?????????????????????????????????????????????????? | +----------------------------------------------------+ Best States ------------- Heat Dissipation 47 Energy Generation 10 Energy Capacity 250 Matter Stores 300 Matter Capacity 300 Sight Range 16 Terrain Scan Density 10 Evasion (%) 40 Recoil Reduction 2 Item Schematics ----------------- None Robot Schematics ------------------ None Fabricated ------------ Nothing Alien Tech Used ----------------- None Achievements -------------- None Challenges ------------ None Game ------ Seed BombardmentCompositeCorpse Manual? 0 Play Time 00:17:55 Cumulative 55.3 hours Start 2021.10.01 @ 09:36:06 End 2021.10.01 @ 09:51:39 Sessions 1 Manual Loads 0 Difficulty Rogue Special Mode None Game No. 120 Rogue 120 Adventurer 0 Explorer 0 Win Type - Total 0 Types 0/0/0/0/0/0/0/0/0 Lore% 41 Gallery% 44 Achievement% 35 Wizard Run 0 Options --------- ASCII 0 Keyboard 0 Movement Numpad Keybinds 0 Fullscreen 2 Font 24/Smallcaps Map View 76x50 Tactical HUD 1 Map Filters NONE Filters NONE Steam 1 RUN: ae40c956-59ea-4c7c-8b50-8feab0c0d471